fUST/lending_fUST_20260124
["ID","MTS","AMOUNT","RATE_DAILY","PERIOD"]
[403146677,1769203838371,-168.0,0.00020707,2]
[403146678,1769203838380,-168.0,0.00021176,2]
[403146679,1769203838389,-251.024,0.000212,2]
[403146680,1769203838398,-168.0,0.00021302,2]
[403146681,1769203838407,-168.0,0.00021347,2]
[403146682,1769203838416,-168.0,0.00021498,2]
[403146683,1769203838425,-514.84070869,0.00021523,2]
[403146684,1769203838434,-168.0,0.00021625,2]
[403146685,1769203838443,-168.0,0.00021663,2]
[403146686,1769203838452,-1000.0,0.00021682,10]
[403146687,1769203838461,-244.0,0.00021682,10]
[403146688,1769203838470,-168.0,0.00021778,2]
[403146689,1769203838479,-168.0,0.00021829,2]
[403146690,1769203838488,-305.80926987,0.00022071,2]
[403146691,1769203838498,-168.0,0.0002214,2]
[403146692,1769203838507,-160.96,0.000222,2]
[403146693,1769203838516,-168.0,0.00022235,2]
[403146694,1769203838525,-168.0,0.00022323,2]
[403146695,1769203838534,-168.0,0.00022369,2]
[403146696,1769203838543,-2000.0,0.00022375,7]
[403146697,1769203838553,-321.99131289,0.00022481,2]
[403146698,1769203838562,-168.0,0.00022601,2]
[403146699,1769203838571,-177.0,0.00022877,8]
[403146700,1769203838581,-1475.24,0.00023014,3]
[403146701,1769203838590,-1723.94,0.000231,14]
[403146702,1769203838599,-3878.0,0.000233,3]
[403146703,1769203838608,-6172.35,0.000233,2]
[403146704,1769203838617,-1368.0,0.00023315,2]
[403146705,1769203838626,-772.104,0.00023315,2]
[403146706,1769203838635,-629.0,0.00023315,2]
[403146707,1769203838644,-178.0,0.00023315,2]
[403146708,1769203838653,-417.0,0.00023315,2]
[403146709,1769203838663,-1000.0,0.00023851,10]
[403146710,1769203838672,-492.0,0.00023851,10]
[403146711,1769203838681,-539.32,0.000239,120]
[403146712,1769203838690,-305.4129056,0.00024078,2]
[403146713,1769203838699,-151.0,0.000241,6]
[403146714,1769203838708,-3878.0,0.00024122,3]
[403146715,1769203838717,-305.4129056,0.00024178,2]
[403146716,1769203838727,-206.69713261,0.00024402,2]
[403146717,1769203838736,-355.68807819,0.00024481,2]
[403146718,1769203838745,-2950.48,0.000245,3]
[403146719,1769203838755,-150.0,0.00024521,2]
[403146720,1769203838764,-150.0,0.00024521,2]
[403146721,1769203838773,-2000.0,0.00024578,7]
[403146722,1769203838782,-150.0,0.00024658,2]
[403146723,1769203838791,-150.0,0.00024658,2]
[403146724,1769203838800,-500.0,0.00024658,2]
[403146725,1769203838810,-160.96,0.000247,2]
[403146726,1769203838819,-815.54642982,0.000247,2]
[403146727,1769203838829,-800.0,0.000247,3]
[403146728,1769203838838,-1233.6268282,0.00024709,2]
[403146729,1769203838847,-2313.5227815,0.00024709,2]
[403146730,1769203838856,-800.0,0.00024769,2]
[403146731,1769203838865,-150.0,0.00024795,2]
[403146732,1769203838874,-150.0,0.00024795,2]
[403146733,1769203838883,-500.0,0.00024795,2]
[403146734,1769203838893,-1502.63,0.00024799,2]
[403146735,1769203838902,-585880.217359,0.000248,2]
[403146736,1769203838915,-58316.43572505,0.000248,2]
[403146793,1769203844332,-168.0,0.00021207,2]
[403146795,1769203844341,-392.0,0.000247,4]
[403146799,1769203844364,-8.0,0.000247,4]
[403146800,1769203844374,-295.17,0.000248,2]
[403146938,1769203845997,-168.0,0.00020761,2]
[403146939,1769203846007,-292.82093786,0.00024402,2]
[403146940,1769203846016,-2687.02,0.0002479,10]
[403146941,1769203846024,-1955.39229915,0.000248,2]
[403146942,1769203846054,-259.31,0.000248,2]
[403147181,1769203863431,501.09814596,0.00013273,2]
[403147182,1769203923657,500.0,0.00013273,2]
[403147183,1769203923696,638.20933929,0.00013821,2]
[403147186,1769203971513,150.0,0.00011955,2]
[403147187,1769203991930,500.0,0.00013699,2]
[403147188,1769204035767,150.0,0.0001241,2]
[403147189,1769204103828,500.0,0.00013699,2]
[403147190,1769204103871,442.37530543,0.00013273,2]
[403147191,1769204103913,425.80029358,0.00013699,2]
[403147192,1769204162978,500.0,0.00013699,2]
[403147193,1769204163008,310.9837589,0.00013699,2]
[403147195,1769204280290,400.95,6.993e-05,2]
[403147196,1769204283392,465.81779273,0.00013273,2]
[403147197,1769204283649,500.0,0.00013699,2]
[403147198,1769204286957,500.0,0.00013699,2]
[403147199,1769204292390,150.0,0.00010418,2]
[403147200,1769204356752,150.0,0.00010989,2]
[403147201,1769204403339,495.2792427,0.00013699,2]
[403147202,1769204463244,500.0,0.00013699,2]
[403147203,1769204527639,500.0,0.00013699,2]
[403147204,1769204611855,150.0,0.00010496,2]
[403147206,1769204756855,656.9923719,0.00013454,2]
[403147207,1769204884827,500.0,0.00013273,2]
[403147208,1769204884890,585.02312985,0.00013821,2]
[403147209,1769204978579,981.9169823,0.00013316,2]
[403147214,1769205031995,-215.14094127,0.00014239,2]
[403147216,1769205032005,-300.0,0.00014243,2]
[403147218,1769205032015,-480.0,0.00014243,2]
[403147219,1769205032024,-500.0,0.00014244,2]
[403147220,1769205032034,-466.78644804,0.00014244,2]
[403147221,1769205032043,-441.4008097,0.00014244,2]
[403147222,1769205032052,-500.0,0.00014244,2]
[403147223,1769205032062,-447.83937243,0.00014244,2]
[403147224,1769205032071,-158.60801817,0.00014244,2]
[403147225,1769205032080,-500.0,0.00014244,2]
[403147226,1769205032089,-493.35583044,0.00014244,2]
[403147227,1769205032099,-300.0,0.00014245,2]
[403147228,1769205032108,-50000.0,0.00014245,2]
[403147229,1769205032117,-1000.0,0.00014247,2]
[403147230,1769205032127,-1000.0,0.00014247,2]
[403147231,1769205032135,-1019.93393778,0.00014247,2]
[403147232,1769205032145,-1000.0,0.00014247,2]
[403147233,1769205032154,-421.15705795,0.00014247,2]
[403147234,1769205032163,-300.0,0.0001453,2]
[403147235,1769205032172,-300.0,0.0001453,2]
[403147236,1769205032181,-300.0,0.0001453,2]
[403147237,1769205032190,-300.0,0.0001453,2]
[403147238,1769205032199,-300.0,0.0001453,2]
[403147239,1769205032209,-300.0,0.0001453,2]
[403147240,1769205032218,-300.0,0.0001453,2]
[403147241,1769205032228,-300.0,0.0001453,2]
[403147242,1769205032237,-300.0,0.0001453,2]
[403147243,1769205032246,-300.0,0.0001453,2]
[403147244,1769205032255,-300.0,0.0001453,2]
[403147245,1769205032265,-300.0,0.0001453,2]
[403147246,1769205032274,-300.0,0.0001453,2]
[403147247,1769205032283,-300.0,0.0001453,2]
[403147248,1769205032293,-300.0,0.0001453,2]
[403147249,1769205032303,-1496.65029383,0.00014795,2]
[403147250,1769205032312,-162.54027969,0.00014795,2]
[403147251,1769205032322,-651.18784025,0.00014795,2]
[403147252,1769205032331,-600.0,0.0001482,2]
[403147253,1769205032340,-161.8370803,0.0001523,2]
[403147254,1769205032349,-155.0,0.00015376,2]
[403147255,1769205032359,-300.0,0.00015601,2]
[403147256,1769205032368,-245.76931949,0.00016159,2]
[403147257,1769205032377,-253.8663107,0.00016239,2]
[403147258,1769205032387,-720.0,0.00016302,2]
[403147259,1769205032397,-629.99683668,0.00016438,2]
[403147260,1769205032406,-182.4,0.00017172,2]
[403147261,1769205032416,-1041.66666667,0.00017245,2]
[403147262,1769205032426,-864.0,0.00017932,2]
[403147263,1769205032435,-619.71,0.0001798,3]
[403147264,1769205032445,-309.85,0.0001798,3]
[403147265,1769205032457,-154.93,0.0001798,3]
[403147266,1769205032600,-464.81,0.0001798,3]
[403147267,1769205032614,-292.59168013,0.00018239,2]
[403147268,1769205032624,-324.0,0.00018392,2]
[403147269,1769205032635,-182.4,0.00018493,2]
[403147270,1769205032646,-696.78862981,0.00018495,2]
[403147271,1769205032656,-1405.24,0.00018506,2]
[403147272,1769205032666,-1405.24,0.00018506,2]
[403147273,1769205032676,-1405.24,0.00018506,2]
[403147274,1769205032687,-1405.24,0.00018506,2]
[403147275,1769205032697,-1405.24,0.00018506,2]
[403147276,1769205032706,-1405.24,0.00018506,2]
[403147277,1769205032716,-1405.24,0.00018506,2]
[403147278,1769205032727,-1405.24,0.00018506,2]
[403147279,1769205032737,-1405.24,0.00018506,2]
[403147280,1769205032748,-1405.24,0.00018506,2]
[403147281,1769205032758,-1405.24,0.00018506,2]
[403147282,1769205032768,-1405.24,0.00018506,2]
[403147283,1769205032778,-1405.24,0.00018506,2]
[403147284,1769205032787,-1405.24,0.00018506,2]
[403147285,1769205032797,-1405.24,0.00018506,2]
[403147286,1769205032807,-1405.24,0.00018506,2]
[403147287,1769205032817,-1405.24,0.00018506,2]
[403147288,1769205032828,-1405.24,0.00018506,2]
[403147289,1769205032838,-1405.24,0.00018506,2]
[403147290,1769205032848,-1405.24,0.00018506,2]
[403147291,1769205032857,-1405.24,0.00018506,2]
[403147292,1769205032867,-1405.24,0.00018506,2]
[403147293,1769205032877,-1405.24,0.00018506,2]
[403147294,1769205032886,-1405.24,0.00018506,2]
[403147295,1769205032896,-1405.24,0.00018506,2]
[403147296,1769205032905,-1405.24,0.00018506,2]
[403147297,1769205032915,-1405.24,0.00018506,2]
[403147298,1769205032924,-1405.24,0.00018506,2]
[403147299,1769205032934,-1405.24,0.00018506,2]
[403147300,1769205032943,-1405.24,0.00018506,2]
[403147301,1769205032952,-1405.24,0.00018506,2]
[403147302,1769205032962,-1405.24,0.00018506,2]
[403147303,1769205032972,-1405.24,0.00018506,2]
[403147304,1769205032993,-1405.24,0.00018506,2]
[403147305,1769205033017,-1405.24,0.00018506,2]
[403147306,1769205033039,-1405.24,0.00018506,2]
[403147307,1769205033062,-1405.24,0.00018506,2]
[403147308,1769205033084,-1405.24,0.00018506,2]
[403147309,1769205033107,-1442.93,0.00018506,2]
[403147310,1769205033131,-401.0,0.00018589,2]
[403147311,1769205033154,-500.0,0.00018605,2]
[403147312,1769205033175,-500.0,0.00018605,2]
[403147313,1769205033199,-500.0,0.00018605,2]
[403147314,1769205033223,-500.0,0.00018605,2]
[403147315,1769205033251,-500.0,0.00018605,2]
[403147316,1769205033276,-500.0,0.00018605,2]
[403147317,1769205033301,-500.0,0.00018605,2]
[403147318,1769205033324,-500.0,0.00018605,2]
[403147319,1769205033334,-250.0,0.00018813,2]
[403147320,1769205033343,-193.46,0.00018841,2]
[403147321,1769205033353,-500.0,0.00019008,2]
[403147322,1769205033362,-151.0,0.000191,2]
[403147323,1769205033372,-1872.5,0.000192,2]
[403147324,1769205033385,-1239.42,0.0001935,3]
[403147325,1769205033395,-619.7,0.0001935,3]
[403147326,1769205033404,-309.86,0.0001935,3]
[403147327,1769205033414,-1000.0,0.00019725,2]
[403147328,1769205033424,-151.0,0.000198,2]
[403147329,1769205033434,-182.4,0.00019813,2]
[403147330,1769205033444,-59205.0,0.0002,7]
[403147331,1769205033457,-331.31704955,0.00020239,2]
[403147332,1769205033468,-151.0,0.000204,4]
[403147333,1769205033478,-204.13,0.00020488,2]
[403147334,1769205033487,-204.0,0.00020548,5]
[403147335,1769205033498,-1368.0,0.00020795,2]
[403147336,1769205033507,-2149.0,0.00020795,2]
[403147337,1769205033518,-778.507,0.00020795,2]
[403147338,1769205033528,-417.0,0.00020795,2]
[403147339,1769205033538,-150.12,0.00020795,2]
[403147340,1769205033548,-151.0,0.000211,3]
[403147341,1769205033557,-182.4,0.00021134,2]
[403147342,1769205033567,-168.0,0.00021357,2]
[403147343,1769205033576,-1872.5,0.000214,2]
[403147344,1769205033586,-1000.0,0.00021697,10]
[403147345,1769205033595,-244.0,0.00021697,10]
[403147346,1769205033605,-151.0,0.000217,3]
[403147347,1769205033614,-200.0,0.00021918,6]
[403147348,1769205033624,-203.0,0.00022022,2]
[403147349,1769205033634,-168.0,0.00022045,2]
[403147350,1769205033644,-203.0,0.00022061,2]
[403147351,1769205033653,-203.0,0.00022137,2]
[403147352,1769205033663,-168.0,0.00022165,2]
[403147353,1769205033672,-321.376,0.000222,2]
[403147354,1769205033682,-370.04241898,0.00022239,2]
[403147355,1769205033691,-151.0,0.000223,6]
[403147356,1769205033701,-203.0,0.00022336,2]
[403147357,1769205033712,-168.0,0.00022416,2]
[403147358,1769205033721,-182.4,0.00022455,2]
[403147359,1769205033731,-168.0,0.0002254,2]
[403147360,1769205033741,-168.0,0.00022542,2]
[403147361,1769205033750,-160.96,0.000226,2]
[403147362,1769205033760,-312.06,0.000226,7]
[403147363,1769205033769,-203.0,0.00022795,2]
[403147364,1769205033779,-203.0,0.00022825,2]
[403147365,1769205033790,-177.0,0.00022849,8]
[403147366,1769205033799,-1016.2290369,0.00022861,2]
[403147367,1769205033809,-203.0,0.00022894,2]
[403147368,1769205033818,-168.0,0.00022954,2]
[403147369,1769205033828,-250.0,0.00022961,2]
[403147370,1769205033837,-151.0,0.00022961,2]
[403147371,1769205033846,-250.0,0.00022961,2]
[403147372,1769205033856,-280.41062468,0.00022961,2]
[403147373,1769205033866,-250.0,0.00022961,2]
[403147374,1769205033875,-151.0,0.00022961,2]
[403147375,1769205033884,-250.0,0.00022961,2]
[403147376,1769205033894,-151.0,0.00022961,2]
[403147377,1769205033903,-250.0,0.00022961,2]
[403147378,1769205033912,-514.84070869,0.00022961,2]
[403147379,1769205033921,-151.0,0.00022961,2]
[403147380,1769205033931,-250.0,0.00022961,2]
[403147381,1769205033940,-250.0,0.00022961,2]
[403147382,1769205033950,-151.0,0.00022961,2]
[403147383,1769205033961,-325.83569503,0.00022961,2]
[403147384,1769205033972,-151.0,0.00022961,2]
[403147385,1769205033982,-151.0,0.00022961,2]
[403147386,1769205033991,-151.0,0.00022961,2]
[403147387,1769205034002,-151.0,0.00022961,2]
[403147388,1769205034012,-151.0,0.00022961,2]
[403147389,1769205034021,-151.0,0.00022961,2]
[403147390,1769205034030,-480.85991094,0.00022961,2]
[403147391,1769205034040,-151.0,0.00022961,2]
[403147392,1769205034050,-187.78006525,0.00022961,2]
[403147393,1769205034060,-194.3299807,0.00022961,2]
[403147394,1769205034070,-194.72792766,0.00022961,2]
[403147395,1769205034079,-201.93286099,0.00022961,2]
[403147396,1769205034088,-209.40437684,0.00022961,2]
[403147397,1769205034098,-217.15233878,0.00022961,2]
[403147398,1769205034107,-225.18697532,0.00022961,2]
[403147399,1769205034117,-233.51889341,0.00022961,2]
[403147400,1769205034127,-242.15909246,0.00022961,2]
[403147401,1769205034136,-251.11897888,0.00022961,2]
[403147402,1769205034145,-260.4103811,0.00022961,2]
[403147403,1769205034155,-270.0455652,0.00022961,2]
[403147404,1769205034165,-280.03725112,0.00022961,2]
[403147405,1769205034175,-290.39862941,0.00022961,2]
[403147406,1769205034184,-301.1433787,0.00022961,2]
[403147407,1769205034194,-203.0,0.00022996,2]
[403147408,1769205034204,-151.0,0.00023,10]
[403147409,1769205034214,-168.0,0.0002322,2]
[403147410,1769205034224,-203.0,0.00023236,2]
[403147411,1769205034235,-203.0,0.00023285,2]
[403147412,1769205034246,-729.0,0.000233,3]
[403147413,1769205034256,-3878.0,0.000233,3]
[403147414,1769205034267,-1459.0,0.000233,3]
[403147415,1769205034276,-1016.22903686,0.00023346,2]
[403147416,1769205034285,-168.0,0.0002337,2]
[403147417,1769205034295,-808.5,0.00023394,10]
[403147418,1769205034304,-1872.5,0.000234,14]
[403147419,1769205034314,-203.0,0.00023421,2]
[403147420,1769205034323,-203.0,0.00023443,2]
[403147421,1769205034333,-305.80926987,0.00023509,2]
[403147422,1769205034343,-203.0,0.00023569,2]
[403147423,1769205034352,-151.0,0.000236,6]
[403147424,1769205034361,-3878.0,0.0002362,3]
[403147425,1769205034371,-182.4,0.00023776,2]
[403147426,1769205034380,-1368.0,0.00023795,2]
[403147427,1769205034390,-2149.0,0.00023795,2]
[403147428,1769205034507,-629.0,0.00023795,2]
[403147429,1769205034517,-417.0,0.00023795,2]
[403147430,1769205034529,-231.0,0.000238,2]
[403147431,1769205034539,-1016.22903686,0.00023831,2]
[403147432,1769205034549,-500.0,0.0002385,2]
[403147433,1769205034559,-500.0,0.0002385,2]
[403147434,1769205034568,-500.0,0.0002385,2]
[403147435,1769205034577,-1000.0,0.00023867,10]
[403147436,1769205034587,-492.0,0.00023867,10]
[403147437,1769205034596,-500.0,0.0002389,2]
[403147438,1769205034606,-500.0,0.0002389,2]
[403147439,1769205034615,-507.25697116,0.0002389,10]
[403147440,1769205034626,-168.0,0.00023891,2]
[403147441,1769205034635,-800.467219,0.00023891,30]
[403147442,1769205034645,-539.32,0.000239,120]
[403147443,1769205034654,-7405.216139,0.000239,30]
[403147444,1769205034663,-353.632582,0.000239,30]
[403147445,1769205034673,-291.371764,0.000239,30]
[403147446,1769205034682,-3878.0,0.0002394,3]
[403147447,1769205034691,-100000.0,0.0002399,2]
[403147448,1769205034700,-1041.66666667,0.00024,7]
[403147449,1769205034709,-203.0,0.00024014,2]
[403147450,1769205034718,-151.0,0.000241,5]
[403147451,1769205034727,-408.76778841,0.00024239,2]
[403147452,1769205034736,-168.0,0.00024285,2]
[403147453,1769205034746,-7130.556895,0.00024285,30]
[403147454,1769205034756,-151.0,0.000243,6]
[403147455,1769205034767,-1016.22903686,0.00024315,2]
[403147456,1769205034776,-264.11300278,0.00024402,2]
[403147457,1769205034787,-177.42656318,0.00024402,2]
[403147458,1769205034798,-319.36781372,0.00024402,2]
[403147459,1769205034808,-150.0,0.00024521,2]
[403147460,1769205034818,-150.0,0.00024521,2]
[403147461,1769205034828,-500.0,0.00024521,2]
[403147462,1769205034838,-150.0,0.00024521,2]
[403147463,1769205034848,-168.0,0.0002458,3]
[403147464,1769205034858,-150.0,0.00024658,2]
[403147465,1769205034868,-150.0,0.00024658,2]
[403147466,1769205034878,-500.0,0.00024658,2]
[403147467,1769205034887,-150.0,0.00024658,2]
[403147468,1769205034897,-500.0,0.00024658,2]
[403147469,1769205034906,-800.0,0.0002466,2]
[403147470,1769205034915,-800.0,0.00024676,2]
[403147471,1769205034924,-815.54642982,0.000247,2]
[403147472,1769205034933,-800.0,0.000247,3]
[403147473,1769205034943,-2313.5227815,0.00024741,2]
[403147474,1769205034954,-1233.6268282,0.00024741,2]
[403147475,1769205034963,-193.46,0.00024761,2]
[403147476,1769205034972,-150.0,0.00024795,2]
[403147477,1769205034982,-150.0,0.00024795,2]
[403147478,1769205034991,-572.0,0.00024795,2]
[403147479,1769205035000,-500.0,0.00024795,2]
[403147480,1769205035010,-1569.67,0.00024799,2]
[403147481,1769205035019,-500.0,0.00024799,15]
[403147482,1769205035028,-500.0,0.00024799,15]
[403147483,1769205035037,-151.0,0.00024799,7]
[403147484,1769205035047,-151.0,0.00024799,7]
[403147485,1769205035057,-500.0,0.00024799,120]
[403147486,1769205035066,-500.0,0.00024799,120]
[403147487,1769205035075,-500.0,0.00024799,120]
[403147488,1769205035084,-500.0,0.00024799,120]
[403147489,1769205035093,-500.0,0.00024799,120]
[403147490,1769205035102,-500.0,0.00024799,120]
[403147491,1769205035111,-500.0,0.00024799,120]
[403147492,1769205035120,-500.0,0.00024799,120]
[403147493,1769205035129,-500.0,0.00024799,120]
[403147494,1769205035138,-500.0,0.00024799,120]
[403147495,1769205035147,-500.0,0.00024799,120]
[403147496,1769205035157,-500.0,0.00024799,120]
[403147497,1769205035166,-500.0,0.00024799,120]
[403147498,1769205035175,-500.0,0.00024799,120]
[403147499,1769205035184,-500.0,0.00024799,120]
[403147500,1769205035193,-500.0,0.00024799,120]
[403147501,1769205035202,-500.0,0.00024799,120]
[403147502,1769205035211,-572.8005133,0.00024799,120]
[403147503,1769205035220,-500.0,0.00024799,2]
[403147504,1769205035229,-500.0,0.00024799,2]
[403147505,1769205035238,-500.0,0.00024799,2]
[403147506,1769205035247,-500.0,0.00024799,2]
[403147507,1769205035256,-500.0,0.00024799,2]
[403147508,1769205035265,-502.7723401,0.00024799,2]
[403147509,1769205035274,-151.0,0.000248,6]
[403147510,1769205035283,-1852.819896,0.000248,30]
[403147511,1769205035292,-150.0,0.000248,5]
[403147512,1769205035301,-1872.5,0.000248,14]
[403147513,1769205035311,-151.0,0.000248,7]
[403147514,1769205035321,-151.0,0.000248,7]
[403147515,1769205035330,-151.0,0.000248,7]
[403147516,1769205035339,-151.0,0.000248,7]
[403147517,1769205035349,-151.0,0.000248,7]
[403147518,1769205035358,-151.0,0.000248,7]
[403147519,1769205035367,-151.0,0.000248,7]
[403147520,1769205035377,-151.0,0.000248,7]
[403147521,1769205035386,-1000.0,0.000248,2]
[403147522,1769205035395,-250.0,0.000248,10]
[403147523,1769205035404,-151.0,0.000248,7]
[403147524,1769205035413,-151.0,0.000248,7]
[403147525,1769205035422,-150.0,0.000248,2]
[403147526,1769205035432,-1016.22903686,0.000248,2]
[403147527,1769205035442,-3536.32581,0.000248,30]
[403147528,1769205035452,-38000.0,0.00024856,7]
[403147529,1769205035464,-38000.0,0.00024865,7]
[403147530,1769205035473,-151.0,0.00024865,7]
[403147531,1769205035483,-151.0,0.00024865,7]
[403147532,1769205035492,-151.0,0.00024865,7]
[403147533,1769205035503,-151.0,0.00024865,7]
[403147534,1769205035512,-151.0,0.00024865,7]
[403147535,1769205035521,-151.0,0.00024865,7]
[403147536,1769205035532,-151.0,0.00024865,7]
[403147537,1769205035543,-151.0,0.00024865,7]
[403147538,1769205035552,-151.0,0.00024865,7]
[403147539,1769205035562,-151.0,0.00024865,7]
[403147540,1769205035572,-260.203914,0.00024865,7]
[403147541,1769205035581,-151.0,0.00024865,7]
[403147542,1769205035591,-151.0,0.00024865,7]
[403147543,1769205035600,-151.0,0.00024865,7]
[403147544,1769205035610,-151.0,0.00024865,7]
[403147545,1769205035619,-404.437396,0.00024865,7]
[403147546,1769205035629,-404.437396,0.00024865,7]
[403147547,1769205035638,-404.437396,0.00024865,7]
[403147548,1769205035648,-404.437396,0.00024865,7]
[403147549,1769205035658,-348.0,0.00024867,3]
[403147550,1769205035667,-348.0,0.00024867,3]
[403147551,1769205035676,-348.0,0.00024867,3]
[403147552,1769205035686,-152.0,0.00024867,3]
[403147553,1769205035695,-348.0,0.00024867,3]
[403147554,1769205035704,-152.0,0.00024867,3]
[403147555,1769205035713,-494.67944626,0.00024867,3]
[403147556,1769205035722,-151.0,0.00024867,3]
[403147557,1769205035731,-152.0,0.00024867,3]
[403147558,1769205035740,-152.0,0.00024867,3]
[403147559,1769205035750,-151.0,0.00024867,3]
[403147560,1769205035760,-152.0,0.00024867,3]
[403147561,1769205035770,-151.0,0.00024867,3]
[403147562,1769205035779,-240.0,0.00024867,3]
[403147563,1769205035788,-151.0,0.00024867,3]
[403147564,1769205035798,-151.0,0.00024867,3]
[403147565,1769205035807,-151.0,0.00024867,3]
[403147566,1769205035816,-151.0,0.00024867,3]
[403147567,1769205035826,-151.0,0.00024867,3]
[403147568,1769205035835,-292.0,0.00024867,3]
[403147569,1769205035844,-720.546212,0.00024867,30]
[403147570,1769205035853,-167.61069879,0.00024867,3]
[403147571,1769205035862,-3325.645224,0.00024872,30]
[403147572,1769205035872,-38000.0,0.00024874,7]
[403147573,1769205035880,-151.0,0.00024874,7]
[403147574,1769205035890,-151.0,0.00024874,7]
[403147575,1769205035899,-151.0,0.00024874,7]
[403147576,1769205035909,-151.0,0.00024874,7]
[403147577,1769205035918,-151.0,0.00024874,7]
[403147578,1769205035927,-151.0,0.00024874,7]
[403147579,1769205035936,-151.0,0.00024874,7]
[403147580,1769205036040,-151.0,0.00024874,7]
[403147581,1769205036051,-151.0,0.00024874,7]
[403147582,1769205036060,-151.0,0.00024874,7]
[403147583,1769205036070,-298.175701,0.00024874,7]
[403147584,1769205036079,-151.0,0.00024874,7]
[403147585,1769205036088,-151.551054,0.00024874,7]
[403147586,1769205036098,-151.0,0.00024874,7]
[403147587,1769205036107,-151.0,0.00024874,7]
[403147588,1769205036117,-284.641838,0.00024874,7]
[403147589,1769205036126,-800.0,0.00024875,2]
[403147590,1769205036136,-151.0,0.00024882,7]
[403147591,1769205036145,-250.508705,0.00024882,7]
[403147592,1769205036154,-151.0,0.00024882,7]
[403147593,1769205036164,-151.0,0.00024882,7]
[403147594,1769205036173,-151.0,0.00024882,7]
[403147595,1769205036182,-151.0,0.00024882,7]
[403147596,1769205036192,-151.0,0.00024882,7]
[403147597,1769205036202,-151.0,0.00024882,7]
[403147598,1769205036211,-151.0,0.00024882,7]
[403147599,1769205036220,-245.550852,0.00024882,7]
[403147600,1769205036229,-151.0,0.00024882,7]
[403147601,1769205036238,-151.0,0.00024882,7]
[403147602,1769205036248,-38000.0,0.00024882,7]
[403147603,1769205036257,-800.0,0.00024883,2]
[403147604,1769205036267,-17742.20907799,0.00024891,7]
[403147605,1769205036283,-373.11910904,0.00024891,7]
[403147626,1769205037998,-151.0,0.00024882,7]
[403147628,1769205038007,-19884.67181297,0.00024891,7]
[403147630,1769205038016,-800.0,0.00024897,2]
[403147631,1769205038025,-38000.0,0.000249,7]
[403147632,1769205038034,-500.0,0.000249,9]
[403147633,1769205038044,-6860.65092141,0.000249,7]
[403147634,1769205038053,-151.0,0.000249,7]
[403147635,1769205038062,-500.0,0.000249,9]
[403147636,1769205038071,-151.0,0.000249,7]
[403147637,1769205038080,-221.972986,0.000249,7]
[403147638,1769205038090,-151.0,0.000249,7]
[403147639,1769205038099,-151.0,0.000249,7]
[403147640,1769205038108,-151.0,0.000249,7]
[403147641,1769205038118,-151.0,0.000249,7]
[403147642,1769205038127,-151.0,0.000249,7]
[403147643,1769205038137,-151.0,0.000249,7]